lending/lending_fUSD_20260411
["ID","MTS","AMOUNT","RATE_DAILY","PERIOD"]
[420272709,1775898333231,1234.6,8.405e-05,2]
[420272710,1775898351060,792.07953512,8.425e-05,2]
[420272711,1775898351443,509.41046488,8.425e-05,2]
[420272712,1775898362895,150.0,8.524e-05,2]
[420272713,1775898362928,300.0,8.523e-05,2]
[420272714,1775898368875,1230.0,8.524e-05,3]
[420272715,1775898377592,200.0,8.5e-05,2]
[420272716,1775898395373,491.45326886,8.5e-05,2]
[420272717,1775898421249,300.0,8.523e-05,2]
[420272718,1775898432180,1176.0,8.524e-05,3]
[420272719,1775898448072,200.0,8.5e-05,2]
[420272720,1775898466369,248.9,8.231e-05,2]
[420272721,1775898486861,1194.0,8.524e-05,3]
[420272722,1775898501071,154.0,8.524e-05,3]
[420272723,1775898541146,300.0,8.523e-05,2]
[420272724,1775898542895,150.0,8.523e-05,2]
[420272725,1775898543510,300.0,8.523e-05,2]
[420272726,1775898547560,1134.0,8.524e-05,3]
[420272727,1775898549456,914.55,8.266e-05,2]
[420272728,1775898569051,3297.35,8.266e-05,2]
[420272729,1775898575974,-500.0,8.524e-05,2]
[420272730,1775898576003,-500.0,8.524e-05,2]
[420272731,1775898576032,-500.0,8.524e-05,2]
[420272732,1775898576064,-500.0,8.524e-05,2]
[420272733,1775898576094,-325.08114989,8.524e-05,2]
[420272734,1775898576127,-500.0,8.524e-05,2]
[420272735,1775898576162,-500.0,8.524e-05,2]
[420272736,1775898576201,-348.08049699,8.524e-05,2]
[420272737,1775898576240,-195.7012808,8.524e-05,2]
[420272738,1775898576275,-165.80777008,8.524e-05,2]
[420272739,1775898576331,-500.0,8.524e-05,2]
[420272740,1775898576380,-302.94034012,8.524e-05,2]
[420272741,1775898576434,-500.0,8.524e-05,2]
[420272742,1775898576487,-254.73544212,8.524e-05,2]
[420272745,1775898601106,139.75673114,8.523e-05,2]
[420272746,1775898601130,160.24326886,8.523e-05,2]
[420272747,1775898601163,300.0,8.523e-05,2]
[420272748,1775898601412,1200.0,8.523e-05,2]
[420272749,1775898611797,1078.0,8.524e-05,3]
[420272750,1775898625161,157.0,8.524e-05,3]
[420272752,1775898633594,-245.26455788,8.524e-05,2]
[420272753,1775898633613,-430.08744212,8.524e-05,2]
[420272754,1775898633821,-69.91255788,8.524e-05,2]
[420272755,1775898633832,-500.0,8.524e-05,2]
[420272756,1775898633850,-500.0,8.524e-05,2]
[420272757,1775898633859,-500.0,8.524e-05,2]
[420272758,1775898633869,-500.0,8.524e-05,2]
[420272759,1775898633887,-500.0,8.524e-05,2]
[420272760,1775898633899,-500.0,8.524e-05,2]
[420272761,1775898633911,-216.73293329,8.524e-05,2]
[420272762,1775898633931,-500.0,8.524e-05,2]
[420272763,1775898633943,-263.21211556,8.524e-05,2]
[420272764,1775898633960,-172.41001393,8.524e-05,2]
[420272765,1775898634022,-16.3699043,8.524e-05,2]
[420272766,1775898634040,-181.22992074,8.524e-05,2]
[420272768,1775898634055,-206.74252595,8.524e-05,2]
[420272770,1775898634068,-331.93346147,8.524e-05,2]
[420272772,1775898634079,-2278.03399934,8.525e-05,2]
[420272775,1775898634100,-893565.92562319,8.525e-05,2]
[420272777,1775898634116,-182344.9850854,8.525e-05,2]
[420272779,1775898634134,-203930.88724117,8.525e-05,2]
[420272781,1775898634147,-299180.17431151,8.525e-05,2]
[420272783,1775898634165,-1254.41808677,8.525e-05,2]
[420272786,1775898634208,-1652.648,8.525e-05,2]
[420272807,1775898638442,-686.0490102,8.525e-05,2]
[420272808,1775898638460,-18568.74825507,8.525e-05,2]
[420272809,1775898638548,-612.02460603,8.525e-05,2]
[420272846,1775898646387,-113558.58541743,8.525e-05,2]
[420272865,1775898646883,-2539.12237933,8.525e-05,2]
[420272866,1775898646904,-2177.0,8.525e-05,2]
[420272888,1775898648608,150.0,8.269e-05,2]
[420272889,1775898661084,300.0,8.524e-05,2]
[420272890,1775898663182,2682.05976812,8.524e-05,2]
[420272891,1775898663227,3182.56317461,8.524e-05,2]
[420272892,1775898663270,790.14378841,8.524e-05,2]
[420272893,1775898663297,238.50582587,8.524e-05,2]
[420272894,1775898663328,844.22689705,8.524e-05,2]
[420272895,1775898667197,1138.0,8.524e-05,3]
[420272896,1775898667840,2152.632826,7.945e-05,2]
[420272897,1775898676378,-2745.01703055,8.525e-05,2]
[420272898,1775898677951,-10000.01,8.525e-05,2]
[420272899,1775898679601,-10000.01,8.525e-05,2]
[420272900,1775898679622,-10000.01,8.525e-05,2]
[420272901,1775898680129,-10000.01,8.525e-05,2]
[420272902,1775898680283,-10000.01,8.525e-05,2]
[420272903,1775898680301,-10000.01,8.525e-05,2]
[420272904,1775898680316,-10000.01,8.525e-05,2]
[420272905,1775898689908,163.4,8.355e-05,2]
[420272906,1775898689949,2471.394,8.355e-05,2]
[420272913,1775898863943,180.0,5.098e-05,2]
[420272914,1775898864082,177.0,5.098e-05,2]
[420272915,1775898864458,177.0,5.098e-05,2]
[420272916,1775898864603,177.0,5.098e-05,2]
[420272917,1775898865521,254.0,5.098e-05,2]
[420272918,1775898887074,20776.11,8.293e-05,2]
[420272919,1775898906704,222.0,0.00016209,120]
[420272920,1775898911903,158.0,8.293e-05,3]
[420272921,1775898958305,500.0,8.287e-05,2]
[420272922,1775898969320,1203.0,8.293e-05,3]
[420272923,1775898987450,1000.0,8.261e-05,2]
[420272924,1775898997659,1000.0,8.427e-05,2]
[420272925,1775899012351,-150.0,8.518e-05,2]
[420272926,1775899026589,1172.0,8.293e-05,3]
[420272927,1775899027815,500.0,8.422e-05,2]
[420272928,1775899042529,-578.20924308,8.522e-05,2]
[420272929,1775899042563,-181.08010149,8.522e-05,2]
[420272930,1775899042599,-500.0,8.522e-05,2]
[420272931,1775899042633,-3313.24215865,8.522e-05,2]
[420272932,1775899057643,-151.0,8.522e-05,2]
[420272933,1775899073645,9698.01,8.175e-05,2]
[420272934,1775899073673,3911.46,8.175e-05,2]
[420272935,1775899088410,-250.0,8.523e-05,2]
[420272936,1775899098384,244.49,8.219e-05,2]
[420272937,1775899103522,-1200.0,8.523e-05,2]
[420272938,1775899111675,1000.0,8.465e-05,2]
[420272939,1775899118693,-154.0,8.524e-05,3]
[420272940,1775899118723,-150.0,8.524e-05,2]
[420272941,1775899118752,-200.93190772,8.524e-05,2]
[420272942,1775899133783,-1000.0,8.55e-05,2]
[420272943,1775899147422,1113.0,8.293e-05,3]
[420272944,1775899148895,-1000.0,8.564e-05,2]
[420272945,1775899150680,154.0,8.293e-05,3]
[420272946,1775899165071,-500.0,8.577e-05,2]
[420272948,1775899180344,-1218.21708715,8.581e-05,2]
[420272949,1775899195546,-775.88696598,8.585e-05,2]
[420272950,1775899195652,486.6027,8.422e-05,2]
[420272951,1775899207874,157.0,8.293e-05,3]
[420272952,1775899207923,1058.0,8.293e-05,3]
[420272953,1775899210788,-1000.0,8.586e-05,2]
[420272954,1775899228028,-150.0,8.588e-05,2]
[420272955,1775899232647,-559.78413043,8.603e-05,2]
[420272956,1775899232675,-886.45,8.603e-05,2]
[420272957,1775899232701,-500.0,8.632e-05,2]
[420272958,1775899232738,-300.0,8.661e-05,2]
[420272959,1775899232767,-244.49,8.676e-05,2]
[420272960,1775899232792,-726.0,8.677e-05,2]
[420272961,1775899233432,-500.0,8.687e-05,2]
[420272962,1775899233464,-1129.0,8.693e-05,2]
[420272963,1775899233510,-1200.0,8.699e-05,2]
[420272964,1775899233538,-1300.0,8.7e-05,3]
[420272965,1775899233568,-300.0,8.7e-05,3]
[420272966,1775899233612,-999.0,8.7e-05,2]
[420272967,1775899233638,-150.0,8.702e-05,2]
[420272968,1775899233707,-1205.27586957,8.703e-05,2]
[420272969,1775899235264,-150.0,8.693e-05,2]
[420272970,1775899235301,-7054.85485282,8.703e-05,2]
[420272971,1775899235345,-178.09177822,8.703e-05,2]
[420272972,1775899235391,-151.0,8.703e-05,2]
[420272973,1775899235456,-174.61919141,8.703e-05,2]
[420272974,1775899235503,-170.0,8.703e-05,2]
[420272975,1775899235533,-170.0,8.703e-05,2]
[420272976,1775899235557,-170.0,8.703e-05,2]
[420272977,1775899235586,-170.0,8.703e-05,2]
[420272978,1775899235610,-170.0,8.703e-05,2]
[420272979,1775899235633,-170.0,8.703e-05,2]
[420272980,1775899235675,-170.0,8.703e-05,2]
[420272981,1775899235701,-170.0,8.703e-05,2]
[420272982,1775899235732,-170.0,8.703e-05,2]
[420272983,1775899235758,-190.61621182,8.703e-05,2]
[420272984,1775899235785,-175.89177647,8.703e-05,2]
[420272985,1775899235816,-394.92618926,8.703e-05,2]
[420272986,1775899237683,-204.67679581,8.703e-05,2]
[420272987,1775899237716,-500.0,8.703e-05,2]
[420272988,1775899237761,-454.0,8.711e-05,2]
[420272989,1775899237782,-704.0,8.724e-05,2]
[420272990,1775899237815,-365.68047621,8.741e-05,2]
[420272991,1775899237844,-500.0,8.742e-05,2]
[420272992,1775899237910,-1539.0,8.752e-05,2]
[420272993,1775899237969,-5732.64272798,8.758e-05,2]
[420272994,1775899239323,-2833.11283113,8.758e-05,2]
[420272995,1775899239357,-151.0,8.758e-05,2]
[420272996,1775899239383,-500.0,8.797e-05,2]
[420272997,1775899239433,-1000.0,8.799e-05,2]
[420272998,1775899239458,-2600.0,8.8e-05,3]
[420272999,1775899239501,-600.0,8.8e-05,3]
[420273000,1775899239534,-2315.88716887,8.8e-05,3]
[420273001,1775899240633,-521.41283113,8.8e-05,3]
[420273002,1775899240657,-2837.3,8.8e-05,3]
[420273003,1775899240686,-6641.28716887,8.813e-05,2]
[420273004,1775899241071,-871.24092304,8.813e-05,2]
[420273005,1775899241102,-151.0,8.813e-05,2]
[420273006,1775899241125,-155.0,8.826e-05,2]
[420273007,1775899241152,-500.0,8.852e-05,2]
[420273008,1775899241177,-500.0,8.858e-05,2]
[420273009,1775899241211,-623.58710448,8.858e-05,2]
[420273010,1775899241241,-1235.18214925,8.858e-05,2]
[420273011,1775899241264,-200.0,8.858e-05,2]
[420273012,1775899241317,-151.0,8.858e-05,2]
[420273013,1775899241349,-151.0,8.858e-05,2]
[420273014,1775899241375,-166.88232923,8.858e-05,2]
[420273015,1775899241410,-500.0,8.858e-05,2]
[420273016,1775899241444,-162.65982942,8.858e-05,2]
[420273017,1775899241476,-500.0,8.858e-05,2]
[420273018,1775899241522,-743.50770149,8.858e-05,2]
[420273019,1775899241563,-500.0,8.858e-05,2]
[420273020,1775899241602,-500.0,8.858e-05,2]
[420273021,1775899241631,-500.0,8.858e-05,2]
[420273022,1775899241705,-500.0,8.858e-05,2]
[420273023,1775899241766,-500.0,8.858e-05,2]
[420273024,1775899241835,-500.0,8.858e-05,2]
[420273025,1775899241895,-388.93996309,8.858e-05,2]
[420273026,1775899242142,-111.06003691,8.858e-05,2]
[420273027,1775899242204,-500.0,8.858e-05,2]
[420273028,1775899242277,-500.0,8.858e-05,2]
[420273029,1775899242340,-500.0,8.858e-05,2]
[420273030,1775899242402,-500.0,8.858e-05,2]
[420273031,1775899242442,-500.0,8.858e-05,2]
[420273032,1775899242485,-500.0,8.858e-05,2]
[420273033,1775899242531,-279.9045709,8.858e-05,2]
[420273034,1775899242569,-150.99,8.864e-05,2]
[420273035,1775899242603,-971.84,8.864e-05,2]
[420273036,1775899242648,-5486.20539219,8.864e-05,2]
[420273037,1775899242874,-579.10460781,8.864e-05,2]
[420273038,1775899242923,-656.59,8.864e-05,2]
[420273039,1775899242962,-8764.30539219,8.864e-05,2]
[420273040,1775899243251,-10000.0,8.864e-05,2]
[420273041,1775899243931,-1239.94460781,8.864e-05,2]
[420273042,1775899243978,-2000.0,8.865e-05,2]
[420273043,1775899244028,-151.0,8.868e-05,2]
[420273044,1775899244086,-886.45,8.877e-05,2]
[420273045,1775899244148,-3900.0,8.9e-05,3]
[420273046,1775899244215,-900.0,8.9e-05,3]
[420273047,1775899244259,-500.0,8.907e-05,2]
[420273048,1775899244303,-151.0,8.923e-05,2]
[420273049,1775899244347,-271.60539219,8.958e-05,3]
[420273050,1775899244463,-928.34769408,8.958e-05,3]
[420273051,1775899244502,-500.0,8.962e-05,2]
[420273052,1775899244552,-151.0,8.978e-05,2]
[420273053,1775899244885,883.0,8.749e-05,2]
[420273054,1775899261852,2668.9931,8.764e-05,2]
[420273055,1775899267897,7331.0169,8.764e-05,2]
[420273056,1775899267931,9726.8279,8.764e-05,2]
[420273057,1775899267988,273.1821,8.749e-05,3]
[420273058,1775899268018,731.8179,8.749e-05,3]
[420273060,1775899279210,-300.0,8.999e-05,2]
[420273061,1775899279246,-300.0,8.999e-05,2]
[420273062,1775899279286,-150.0,8.999e-05,2]
[420273063,1775899279321,-8893.59346976,9e-05,2]
[420273064,1775899279344,-356.40653024,9e-05,2]
[420273065,1775899280470,-4643.59346976,9e-05,2]
[420273066,1775899280507,-5000.0,9e-05,2]
[420273067,1775899280543,-356.40653024,9e-05,2]
[420273068,1775899281273,-341.87234272,9e-05,2]
[420273069,1775899281313,-5200.0,9e-05,3]
[420273070,1775899281348,-1300.0,9e-05,3]
[420273071,1775899281382,-1358.08093086,9e-05,2]
[420273072,1775899281412,-300.0,9e-05,3]
[420273073,1775899281438,-500.0,9.017e-05,2]
[420273074,1775899281470,-151.0,9.033e-05,2]
[420273075,1775899281499,-187.78006525,9.07e-05,2]
[420273076,1775899281528,-500.0,9.072e-05,2]
[420273077,1775899281562,-151.0,9.088e-05,2]
[420273078,1775899281594,-10.26666117,9.1e-05,2]
[420273079,1775899281804,-408.73333883,9.1e-05,2]
[420273080,1775899281845,-500.0,9.127e-05,2]
[420273081,1775899281882,-244.49,9.132e-05,2]
[420273082,1775899281906,-151.0,9.143e-05,2]
[420273083,1775899281941,-886.45,9.151e-05,2]
[420273084,1775899281974,-150.0,9.167e-05,2]
[420273085,1775899282009,-150.0,9.167e-05,2]
[420273086,1775899282042,-150.0,9.167e-05,2]
[420273087,1775899282082,-150.0,9.167e-05,2]
[420273088,1775899282119,-150.0,9.167e-05,2]
[420273089,1775899282143,-157.59179605,9.167e-05,2]
[420273090,1775899282185,-500.0,9.167e-05,2]
[420273091,1775899282222,-500.0,9.167e-05,2]
[420273092,1775899282259,-500.0,9.167e-05,2]
[420273093,1775899282307,-500.0,9.167e-05,2]
[420273094,1775899282347,-174.02933512,9.167e-05,2]
[420273095,1775899282383,-500.0,9.167e-05,2]
[420273096,1775899282439,-500.0,9.167e-05,2]
[420273097,1775899282476,-500.0,9.167e-05,2]
[420273098,1775899282506,-500.0,9.167e-05,2]
[420273099,1775899282548,-500.0,9.167e-05,2]
[420273100,1775899282591,-500.0,9.167e-05,2]
[420273101,1775899282628,-500.0,9.167e-05,2]
[420273102,1775899282665,-482.10184887,9.167e-05,2]
[420273103,1775899282703,-150.0,9.167e-05,2]
[420273104,1775899282739,-150.0,9.167e-05,2]
[420273105,1775899282769,-150.0,9.167e-05,2]
[420273106,1775899282808,-150.0,9.167e-05,2]
[420273107,1775899282847,-145.60368113,9.167e-05,2]
[420273108,1775899284831,-4.39631887,9.167e-05,2]
[420273109,1775899284859,-150.0,9.167e-05,2]
[420273110,1775899284885,-150.0,9.167e-05,2]
[420273111,1775899284915,-150.0,9.167e-05,2]
[420273112,1775899284943,-150.0,9.167e-05,2]
[420273113,1775899284971,-150.0,9.167e-05,2]
[420273114,1775899285016,-500.0,9.167e-05,2]
[420273115,1775899285054,-500.0,9.167e-05,2]
[420273116,1775899285093,-188.42216521,9.167e-05,2]
[420273117,1775899285134,-500.0,9.167e-05,2]
[420273118,1775899285167,-500.0,9.167e-05,2]
[420273119,1775899285222,-500.0,9.167e-05,2]
[420273120,1775899285263,-379.15889098,9.167e-05,2]
[420273121,1775899285300,-150.0,9.167e-05,2]
[420273122,1775899285345,-500.0,9.167e-05,2]
[420273123,1775899285395,-500.0,9.167e-05,2]
[420273124,1775899285435,-500.0,9.167e-05,2]
[420273125,1775899285482,-500.0,9.167e-05,2]
[420273126,1775899285515,-500.0,9.167e-05,2]
[420273127,1775899285541,-500.0,9.167e-05,2]
[420273128,1775899285573,-500.0,9.167e-05,2]
[420273129,1775899285623,-500.0,9.167e-05,2]
[420273130,1775899285646,-500.0,9.167e-05,2]
[420273131,1775899285690,-500.0,9.167e-05,2]
[420273132,1775899285716,-500.0,9.167e-05,2]
[420273133,1775899285758,-500.0,9.167e-05,2]
[420273134,1775899285787,-28.02262494,9.167e-05,2]
[420273136,1775899286009,-471.97737506,9.167e-05,2]
[420273137,1775899286038,-518.0,9.167e-05,2]
[420273138,1775899286068,-500.0,9.167e-05,2]
[420273139,1775899286103,-166.66,9.168e-05,2]
[420273140,1775899286135,-500.0,9.182e-05,2]
[420273141,1775899286161,-151.0,9.198e-05,2]
[420273142,1775899286197,-150.0,9.2e-05,2]
[420273143,1775899291236,1116.0,9.009e-05,2]
[420273144,1775899300686,1116.0,8.512e-05,2]
[420273145,1775899319944,-1116.0,8.559e-05,2]
[420273146,1775899327425,1037.0,8.512e-05,3]
[420273147,1775899328422,-300.0,8.725e-05,2]
[420273148,1775899345315,-1000.0,8.726e-05,2]
[420273149,1775899347521,-5454.6494,8.726e-05,2]
[420273150,1775899347598,-10000.01,8.726e-05,2]
[420273151,1775899347617,-10000.01,8.726e-05,2]
[420273152,1775899347686,-10000.01,8.726e-05,2]
[420273153,1775899347836,-10000.01,8.726e-05,2]
[420273154,1775899347900,-10000.01,8.726e-05,2]
[420273155,1775899349765,-10000.01,8.726e-05,2]
[420273156,1775899349889,-10000.01,8.726e-05,2]
[420273157,1775899350045,-10000.01,8.726e-05,2]
[420273158,1775899350105,-1000.0,8.726e-05,2]
[420273159,1775899350346,-10000.01,8.726e-05,2]
[420273160,1775899352883,-10000.01,8.726e-05,2]
[420273161,1775899352928,-10000.01,8.726e-05,2]
[420273162,1775899356111,-10000.01,8.726e-05,2]
[420273163,1775899357449,-600.0,8.726e-05,2]
[420273164,1775899361912,-10000.01,8.726e-05,2]
[420273165,1775899362138,-10000.01,8.726e-05,2]
[420273166,1775899380246,5000.01,8.613e-05,2]
[420273167,1775899385467,-10000.0,8.613e-05,2]
[420273168,1775899386791,-10000.0,8.613e-05,2]
[420273169,1775899387498,-10000.0,8.613e-05,2]
[420273170,1775899387982,-10000.0,8.613e-05,2]
[420273171,1775899389772,-10000.0,8.613e-05,2]
[420273172,1775899389909,-10000.0,8.613e-05,2]
[420273173,1775899390102,-10000.0,8.613e-05,2]
[420273174,1775899390273,-10000.0,8.613e-05,2]
[420273175,1775899390288,-10000.01,8.613e-05,2]
[420273176,1775899390313,-10000.01,8.613e-05,2]
[420273177,1775899390328,-10000.01,8.613e-05,2]
[420273178,1775899390514,-10000.0,8.613e-05,2]
[420273179,1775899391023,-10000.0,8.613e-05,2]
[420273180,1775899391486,-10000.0,8.613e-05,2]
[420273181,1775899392405,-10000.0,8.613e-05,2]
[420273182,1775899392552,-10000.0,8.613e-05,2]
[420273183,1775899393071,-10000.0,8.613e-05,2]
[420273184,1775899393593,-10000.0,8.613e-05,2]
[420273185,1775899394018,-10000.0,8.613e-05,2]
[420273186,1775899394445,-10000.0,8.613e-05,2]
[420273187,1775899394951,-10000.0,8.613e-05,2]
[420273188,1775899395448,-10000.0,8.613e-05,2]
[420273189,1775899396038,-10000.0,8.613e-05,2]
[420273190,1775899396339,-10000.0,8.613e-05,2]
[420273191,1775899396843,-151.0,8.61e-05,2]
[420273192,1775899396903,-9849.0,8.613e-05,2]
[420273193,1775899397324,-10000.0,8.613e-05,2]
[420273194,1775899397853,-10000.0,8.613e-05,2]
[420273195,1775899398247,-10000.0,8.613e-05,2]
[420273196,1775899415657,172.67,6.752e-05,2]
[420273197,1775899426470,766.367923,8.513e-05,2]
[420273198,1775899427372,200.0,8.5e-05,2]
[420273199,1775899444367,3860.972077,8.178e-05,2]
[420273200,1775899444405,1267.177923,8.178e-05,2]
[420273201,1775899447423,1431.0,8.5e-05,3]
[420273202,1775899454608,164.0,8.5e-05,3]
[420273203,1775899461206,-300.0,8.612e-05,2]
[420273204,1775899461232,-300.0,8.612e-05,2]
[420273205,1775899461256,-150.0,8.612e-05,2]
[420273206,1775899461284,-650.0,8.612e-05,2]
[420273207,1775899461311,-5000.0,8.612e-05,2]
[420273208,1775899461341,-3600.0,8.613e-05,2]
[420273209,1775899461927,153.0,8.5e-05,3]
[420273210,1775899474670,-1539.0,8.613e-05,2]
[420273211,1775899503553,-300.0,8.612e-05,2]
[420273212,1775899503596,-300.0,8.612e-05,2]
[420273213,1775899503638,-1200.0,8.612e-05,2]
[420273214,1775899503682,-8200.0,8.613e-05,2]
[420273215,1775899516113,500.0,8.459e-05,2]
[420273216,1775899519282,-5000.0,8.612e-05,2]
[420273217,1775899519318,-1000.0,8.613e-05,2]
[420273218,1775899530359,1484.832077,8.178e-05,2]
[420273219,1775899530400,4873.8,8.178e-05,2]
[420273220,1775899544331,-399.0,8.613e-05,2]
[420273221,1775899603191,-300.0,8.612e-05,2]
[420273222,1775899603246,-1020.58142224,8.613e-05,2]
[420273223,1775899607239,126.21,8.539e-05,2]
[420273224,1775899607272,25.79,8.539e-05,2]
[420273225,1775899608081,152.0,8.542e-05,2]
[420273226,1775899608385,152.0,8.542e-05,2]
[420273227,1775899609134,152.0,8.544e-05,2]
[420273228,1775899609898,152.0,8.544e-05,2]
[420273229,1775899611648,152.0,8.544e-05,2]
[420273231,1775899793568,1600.0,7.785e-05,2]
[420273232,1775899812939,-1094.0,8.61e-05,2]
[420273233,1775899812986,-273.0,8.61e-05,2]
[420273234,1775899813052,-300.0,8.61e-05,2]
[420273235,1775899813093,-300.0,8.61e-05,2]
[420273236,1775899813832,-1200.0,8.61e-05,2]
[420273237,1775899813878,-300.0,8.61e-05,2]
[420273238,1775899813937,-150.0,8.61e-05,2]
[420273239,1775899819692,1518.55,8.575e-05,2]
[420273243,1775899828062,-1398.42577877,8.61e-05,2]
[420273244,1775899828478,160.49294424,8.58e-05,2]
[420273245,1775899829186,-197.32931126,8.611e-05,2]
[420273246,1775899829235,-500.0,8.611e-05,2]
[420273247,1775899829296,-369.10369984,8.611e-05,2]
[420273248,1775899829342,-500.0,8.611e-05,2]
[420273249,1775899829396,-500.0,8.611e-05,2]
[420273250,1775899829458,-572.12562777,8.611e-05,2]
[420273251,1775899829503,-500.0,8.611e-05,2]
[420273252,1775899829556,-500.0,8.611e-05,2]
[420273253,1775899829599,-182.83529014,8.611e-05,2]
[420273254,1775899829638,-500.0,8.611e-05,2]
[420273255,1775899829671,-500.0,8.611e-05,2]
[420273256,1775899829772,-500.0,8.611e-05,2]
[420273257,1775899829806,-501.39349544,8.611e-05,2]
[420273258,1775899829850,-500.0,8.611e-05,2]
[420273259,1775899829891,-500.0,8.611e-05,2]
[420273260,1775899829948,-500.0,8.611e-05,2]
[420273261,1775899830017,-500.0,8.611e-05,2]
[420273262,1775899830061,-500.0,8.611e-05,2]
[420273263,1775899830117,-500.0,8.611e-05,2]
[420273264,1775899830173,-500.0,8.611e-05,2]
[420273265,1775899830227,-497.22300912,8.611e-05,2]
[420273266,1775899830286,-2.77699088,8.611e-05,2]
[420273267,1775899830334,-500.0,8.611e-05,2]
[420273268,1775899830377,-500.0,8.611e-05,2]
[420273269,1775899830425,-500.0,8.611e-05,2]
[420273270,1775899830469,-500.0,8.611e-05,2]
[420273271,1775899830518,-500.0,8.611e-05,2]
[420273272,1775899830562,-500.0,8.611e-05,2]
[420273273,1775899830614,-418.45411213,8.611e-05,2]
[420273274,1775899830673,-500.0,8.611e-05,2]
[420273275,1775899830745,-500.0,8.611e-05,2]
[420273276,1775899830788,-500.0,8.611e-05,2]
[420273277,1775899830916,-266.75367124,8.611e-05,2]
[420273278,1775899831007,-500.0,8.611e-05,2]
[420273279,1775899831159,-500.0,8.611e-05,2]
[420273280,1775899831230,-500.0,8.611e-05,2]
[420273281,1775899831294,-500.0,8.611e-05,2]
[420273282,1775899831338,-423.80859651,8.611e-05,2]
[420273283,1775899831384,-353.57688311,8.611e-05,2]
[420273284,1775899831428,-500.0,8.611e-05,2]
[420273285,1775899831469,-500.0,8.611e-05,2]
[420273286,1775899831506,-500.0,8.611e-05,2]
[420273287,1775899831547,-364.99034941,8.611e-05,2]
[420273288,1775899831694,-181.75099946,8.611e-05,2]
[420273289,1775899831736,-500.0,8.611e-05,2]
[420273290,1775899831777,-4005.04652258,8.611e-05,2]
[420273291,1775899833459,-4005.04652258,8.611e-05,2]
[420273292,1775899833619,-4005.04652258,8.611e-05,2]
[420273293,1775899833825,-4005.04652258,8.611e-05,2]
[420273294,1775899833986,-4005.04652258,8.611e-05,2]
[420273295,1775899836079,-4005.04652258,8.611e-05,2]
[420273296,1775899836223,-4005.04652258,8.611e-05,2]
[420273297,1775899837105,-1131.006773,8.611e-05,2]
[420273298,1775899837298,-2874.03974958,8.611e-05,2]
[420273299,1775899837308,-939.84048087,8.611e-05,2]
[420273300,1775899837332,-3065.20604171,8.611e-05,2]
[420273301,1775899837349,-4005.04652258,8.611e-05,2]
[420273302,1775899837358,-4005.04652258,8.611e-05,2]
[420273303,1775899837387,-300.0,8.611e-05,2]
[420273304,1775899837396,-500.0,8.611e-05,2]
[420273305,1775899837414,-4005.04652258,8.611e-05,2]
[420273306,1775899837437,-4005.04652258,8.611e-05,2]
[420273307,1775899837452,-4005.04652258,8.611e-05,2]
[420273308,1775899837470,-4005.04652258,8.611e-05,2]
[420273309,1775899837480,-500.0,8.611e-05,2]
[420273310,1775899837493,-4005.04652258,8.611e-05,2]
[420273311,1775899837508,-4005.04652258,8.611e-05,2]
[420273312,1775899837520,-619.32980687,8.611e-05,2]
[420273313,1775899837545,-4005.04652258,8.611e-05,2]
[420273314,1775899837563,-4005.04652258,8.611e-05,2]
[420273315,1775899837586,-4005.04652258,8.611e-05,2]
[420273316,1775899837599,-4005.04652258,8.611e-05,2]
[420273317,1775899837612,-4005.04652258,8.611e-05,2]
[420273318,1775899837647,-4005.04652258,8.611e-05,2]
[420273319,1775899837666,-500.0,8.611e-05,2]
[420273320,1775899837690,-4005.04652258,8.611e-05,2]
[420273321,1775899837702,-500.0,8.611e-05,2]
[420273322,1775899837716,-4005.04652258,8.611e-05,2]
[420273323,1775899837745,-4005.04652258,8.611e-05,2]
[420273324,1775899837755,-4005.04652258,8.611e-05,2]
[420273325,1775899837775,-4005.04652258,8.611e-05,2]
[420273326,1775899837785,-4005.04652258,8.611e-05,2]
[420273327,1775899837796,-4005.04652258,8.611e-05,2]
[420273328,1775899837811,-4005.04652258,8.611e-05,2]
[420273329,1775899837825,-4005.04652258,8.611e-05,2]
[420273330,1775899837836,-4005.04652258,8.611e-05,2]